bitfinex-derivatives/quotes_ETHF0:USTF0_20240826
["timestamp","ask_amount","ask_price","bid_price","bid_amount"]
[1724695397471,10.53820416,2695.8,2695.1,0.6642]
[1724695397671,10.53820416,2695.8,2695.1,0.00266614]
[1724695397672,0.37083,2695.7,2695.1,0.00266614]
[1724695397876,0.00469617,2695.7,2695.2,0.37089]
[1724695398080,9.45350209,2695.6,2695.2,0.37089]
[1724695398585,9.45350209,2695.6,2695.1,0.00266614]
[1724695398586,13.53474209,2695.6,2695.1,0.37357614]
[1724695398784,9.82435209,2695.6,2695.1,0.00266614]
[1724695398975,9.45350209,2695.6,2695.2,0.37089]
[1724695399172,9.45350209,2695.6,2695.1,0.00266614]
[1724695399480,9.82434209,2695.6,2695.1,0.37357614]
[1724695399980,0.6231,2695.5,2695.1,0.00266614]
[1724695400175,9.45350209,2695.6,2695.1,0.00266614]
[1724695400368,9.1449891,2695.4,2695.3,4.5059]
[1724695400573,9.1449891,2695.4,2695.3,12.4863]
[1724695400775,0.01025564,2695.7,2695.6,0.37084]
[1724695400979,0.01025564,2695.7,2695.6,28.27084]
[1724695401283,0.01025564,2695.7,2695.6,27.9]
[1724695401781,0.01025564,2695.7,2695.6,28.27084]
[1724695402089,0.01025564,2695.7,2695.4,0.6247]
[1724695402090,9.49660803,2695.7,2695.1,0.00266614]
[1724695402387,9.49660803,2695.7,2695.3,0.37088]
[1724695402388,0.6737,2695.6,2695.3,0.37088]
[1724695402587,0.6737,2695.6,2695.3,28.27088]
[1724695402777,9.24614556,2695.5,2695.3,27.9]
[1724695402975,9.24614556,2695.5,2695.1,0.00266614]
[1724695403288,9.24614556,2695.5,2695.1,0.37356614]
[1724695403486,9.24614556,2695.5,2695.1,27.90266614]
[1724695404088,0.3709,2695.2,2695.1,0.00266614]
[1724695404279,0.3709,2695.2,2694.2,5.19757]
[1724695404280,0.37093,2695.0,2694.5,0.37099]
[1724695404480,12.11539,2695.4,2694.4,27.9]
[1724695404481,4.9316,2695.1,2694.4,27.9]
[1724695404679,3.76839623,2694.9,2694.8,0.37094]
[1724695404986,3.7104,2694.9,2694.6,0.37097]
[1724695405178,9.33862982,2694.9,2694.6,0.37468727]
[1724695405373,9.33862982,2694.9,2694.7,0.37097]
[1724695405682,9.22280987,2695.0,2694.7,0.37097]
[1724695405888,9.22280987,2694.8,2694.6,0.00371727]
[1724695406091,12.93400987,2695.0,2694.6,0.00371727]
[1724695406279,0.37096,2694.8,2694.6,0.00371727]
[1724695406479,0.37097,2694.7,2694.6,0.00371727]
[1724695406783,9.64317314,2694.7,2694.6,0.00371727]
[1724695406978,4.08217,2694.7,2694.6,0.00371727]
[1724695407184,13.35437314,2694.7,2694.6,0.00371727]
[1724695407374,14.00487314,2694.7,2694.6,0.00371727]
[1724695408880,19.56135314,2694.7,2694.1,28.27104]
[1724695409075,0.37101,2694.4,2694.1,28.27104]
[1724695409281,0.37101,2694.4,2694.2,0.37103]
[1724695409486,9.4626079,2694.3,2694.2,0.37103]
[1724695409880,13.1746079,2694.3,2694.2,0.00422593]
[1724695410286,18.5456279,2694.3,2694.2,0.00422593]
[1724695410585,16.7534379,2694.3,2693.5,0.92784]
[1724695410786,13.0414279,2694.3,2694.0,0.37106]
[1724695411193,0.37104,2694.2,2693.9,0.37107]
[1724695411490,0.37104,2694.2,2693.9,0.37482098]
[1724695411491,9.463489,2694.1,2693.9,0.37482098]
[1724695411686,9.463489,2694.1,2694.0,0.37106]
[1724695411891,13.175489,2694.1,2693.9,0.37482098]
[1724695412688,13.546539,2694.1,2693.9,0.00375098]
[1724695412893,4.08306,2694.0,2693.9,0.00375098]
[1724695413194,4.08306,2694.0,2693.1,0.37119]
[1724695413195,4.27,2693.4,2693.1,0.37119]
[1724695413386,0.37116,2693.3,2693.1,27.9]
[1724695413691,13.44816314,2693.3,2692.7,3.2078]
[1724695413892,0.37119,2693.1,2692.7,3.2078]
[1724695414193,0.37119,2693.1,2692.7,0.37575317]
[1724695414194,3.2078,2692.9,2692.7,0.37575317]
[1724695414583,3.2078,2692.9,2692.7,0.00451317]
[1724695414584,9.38689599,2692.8,2692.7,0.00451317]
[1724695414783,9.38689599,2692.8,2692.7,0.37575317]
[1724695415801,9.49799197,2692.9,2692.7,0.00451317]
[1724695415995,9.49799197,2692.8,2692.7,0.00451317]
[1724695416295,13.21159197,2692.9,2692.8,0.37123]
[1724695416487,9.49799197,2692.9,2692.8,0.37123]
[1724695416683,3.7136,2692.9,2692.7,0.37574317]
[1724695416894,9.15022957,2692.9,2692.7,0.37574317]
[1724695417395,13.23504957,2692.9,2692.7,0.00451317]
[1724695417797,13.23504957,2692.9,2692.7,0.37575317]
[1724695418096,8.35483,2692.8,2692.7,0.00451317]
[1724695418300,0.37127,2692.5,2692.0,27.9]
[1724695418489,0.37127,2692.5,2691.1,0.4399]
[1724695418490,4.27,2692.2,2691.4,0.92855]
[1724695418692,4.27,2692.2,2692.1,0.37132]
[1724695418995,9.38895665,2692.1,2691.9,0.37134]
[1724695419185,13.65895665,2692.2,2691.9,0.00376483]
[1724695419386,12.90557051,2692.0,2691.9,0.00376483]
[1724695419788,11.9222,2692.0,2691.2,0.4399]
[1724695419996,4.27,2691.6,2690.9,0.92873]
[1724695420297,4.27,2691.6,2691.4,0.37142]
[1724695420505,9.32643051,2691.5,2691.4,0.37142]
[1724695420795,9.32643051,2691.5,2691.4,0.37591818]
[1724695420796,0.00557,2691.5,2691.4,0.37591818]
[1724695421203,9.40058533,2691.5,2691.4,0.37591818]
[1724695423594,9.40058533,2691.5,2691.4,0.00449818]
[1724695423595,9.77199533,2691.5,2691.4,0.00449818]
[1724695423898,13.11578533,2691.5,2691.4,0.00449818]
[1724695424299,13.48719533,2691.5,2691.4,0.00449818]
[1724695424501,13.11578533,2691.5,2691.4,0.00449818]
[1724695424909,9.40058533,2691.5,2691.4,0.00449818]
[1724695425104,13.11578533,2691.5,2691.4,0.37591818]
[1724695425299,13.11578533,2691.5,2691.4,0.00449818]
[1724695425605,13.48719533,2691.5,2691.4,0.00449818]
[1724695426109,13.11578533,2691.5,2691.4,0.37591818]
[1724695426305,9.40058533,2691.5,2691.4,0.37591818]
[1724695427101,9.40058533,2691.5,2691.4,4.09111818]
[1724695427411,0.6707,2692.1,2692.0,0.37134]
[1724695427598,0.6707,2692.1,2691.8,0.37136]
[1724695427804,0.6707,2692.1,2691.4,0.00449818]
[1724695427805,13.91732498,2691.9,2691.7,0.37137]
[1724695428005,13.54597498,2691.9,2691.8,0.37136]
[1724695428309,4.27,2692.2,2692.1,0.37132]
[1724695428611,0.00557,2692.4,2692.3,0.3713]
[1724695429106,9.16699753,2692.4,2692.3,0.3713]
[1724695431005,9.16699753,2692.4,2692.0,0.6626]
[1724695431314,4.27,2692.3,2691.8,25.7]
[1724695431504,4.27,2692.3,2692.2,0.37131]
[1724695431704,9.16699753,2692.4,2692.3,0.3713]
[1724695431705,0.00557,2692.4,2692.3,0.3713]
[1724695432216,9.08217883,2692.4,2692.3,0.3713]
[1724695433113,9.08217883,2692.4,2692.3,4.0857]
[1724695433308,4.64287,2693.5,2692.3,8.7144]
[1724695433309,4.27435736,2693.1,2692.3,8.7144]
[1724695433507,4.27435736,2693.1,2693.0,0.3712]
[1724695433508,0.00435736,2693.1,2693.0,0.3712]
[1724695433903,9.29064801,2693.1,2693.0,0.3712]
[1724695434303,9.29064801,2693.1,2693.0,1.29921]
[1724695434512,4.932e-05,2693.1,2693.0,9.79142]
[1724695434716,4.932e-05,2693.1,2693.0,40.49142]
[1724695434914,4.932e-05,2693.1,2693.0,36.35561]
[1724695435718,4.932e-05,2693.1,2693.0,35.4276]
[1724695436320,7.84886,2694.1,2693.1,3.7128]
[1724695436520,0.37106,2694.0,2693.7,0.3711]
[1724695436815,9.29623524,2693.8,2693.7,0.3711]
[1724695437023,9.29623524,2694.0,2693.7,0.3711]
[1724695437214,9.66731524,2693.9,2693.6,0.37111]
[1724695437516,4.27,2693.8,2693.7,0.3711]
[1724695437711,9.47917569,2693.8,2693.7,0.3711]
[1724695438117,0.00433456,2693.9,2693.8,0.37109]
[1724695438620,0.00433456,2693.9,2693.8,4.08309]
[1724695439520,0.00433456,2693.9,2693.8,5.01082]
[1724695439913,0.00433456,2693.9,2693.8,13.21862]
[1724695440110,0.00433456,2693.9,2693.8,14.78735]
[1724695440321,0.00557,2694.0,2693.9,1.29878]
[1724695440512,0.00557,2694.0,2693.9,30.71078]
[1724695440712,0.00557,2694.0,2693.9,35.71078]
[1724695441324,3.45419534,2695.1,2693.9,34.78308]
[1724695441325,3.2078,2695.1,2693.9,34.78308]
[1724695441511,0.92713,2695.6,2694.7,3.2078]
[1724695441512,4.27,2695.5,2694.7,3.2078]
[1724695441714,4.27,2695.5,2694.8,0.7054]
[1724695441715,9.19050905,2694.9,2694.8,0.7054]
[1724695442021,4.27,2695.5,2694.8,0.7054]
[1724695442022,9.19050905,2695.1,2695.0,0.37092]
[1724695442317,9.19050905,2695.1,2694.9,0.37093]
[1724695442318,0.00378609,2695.1,2694.9,0.37093]
[1724695442516,0.00378609,2695.1,2694.8,0.7054]
[1724695442722,0.00378609,2695.1,2694.9,0.37093]
[1724695443117,9.27785355,2695.0,2694.8,1.08192]
[1724695443313,9.27785355,2695.0,2694.9,0.37094]
[1724695443512,9.27785355,2695.0,2694.8,0.71097]
[1724695444221,4.27,2694.9,2694.8,0.00557]
[1724695444413,9.27785355,2695.0,2694.9,0.37094]
[1724695444614,0.00378609,2695.1,2694.9,3.7104]
[1724695444820,0.00378609,2695.1,2695.0,0.37092]
[1724695445021,0.00378609,2695.1,2695.0,4.08132]
[1724695445327,0.00378609,2695.1,2695.0,7.28912]
[1724695445516,0.00378609,2695.1,2695.0,4.08132]
[1724695446114,0.00378609,2695.1,2694.9,0.694]
[1724695446316,0.00378609,2695.1,2694.9,0.37093]
[1724695446516,0.00378609,2695.1,2694.8,0.37651]
[1724695446722,0.00378609,2695.1,2694.9,0.37093]
[1724695447022,0.00378609,2695.1,2695.0,0.37092]
[1724695447234,0.00378609,2695.1,2695.0,1.29824]
[1724695447423,0.00378609,2695.1,2695.0,10.00864]
[1724695447624,0.00378609,2695.1,2695.0,4.08132]
[1724695448416,0.00378609,2695.1,2695.0,29.78132]
[1724695448618,0.00378609,2695.1,2695.0,34.78132]
[1724695448819,0.00378609,2695.1,2695.0,25.7]
[1724695449120,9.42684747,2695.1,2694.8,0.00557]
[1724695450125,9.42684747,2695.1,2694.8,0.37652]
[1724695450325,9.42684747,2695.1,2694.9,0.37094]
[1724695450638,9.42684747,2695.1,2694.8,0.37652]
[1724695450826,0.37093,2695.0,2694.8,0.00557]
[1724695451132,9.39217628,2694.9,2694.8,0.00557]
[1724695451321,9.39217628,2694.9,2694.8,0.37652]
[1724695451718,9.39217628,2694.9,2694.8,0.00557]
[1724695452133,9.76311628,2694.9,2694.8,0.00557]
[1724695452329,13.79927628,2694.9,2694.8,0.00557]
[1724695452525,14.17021628,2694.9,2694.8,0.00557]
[1724695453141,13.79927628,2694.9,2694.8,0.00557]
[1724695453433,14.17021628,2694.9,2694.8,0.00557]
[1724695453632,18.79927628,2694.9,2694.0,3.2078]
[1724695453832,0.37107,2694.0,2693.6,0.00413008]
[1724695454024,4.27,2693.7,2693.6,0.37525008]
[1724695454231,9.41471259,2693.9,2693.6,0.00413008]
[1724695454435,9.41471259,2693.7,2693.6,0.37525008]
[1724695454629,4.27,2694.3,2694.0,0.37106]
[1724695454823,4.27,2694.3,2693.6,3.21193008]
[1724695455138,9.19317298,2693.9,2693.7,0.37109]
[1724695455436,0.00557,2693.9,2693.6,0.00413008]
[1724695455622,9.34115131,2693.8,2693.6,0.00413008]
[1724695456325,10.04785131,2693.8,2693.6,0.00413008]
[1724695457124,10.04785131,2693.8,2693.6,0.37524008]
[1724695458024,10.04785131,2693.8,2693.6,0.00413008]
[1724695458535,18.02985131,2693.8,2693.6,0.00413008]
[1724695458836,0.3711,2693.7,2693.6,0.00413008]
[1724695459135,0.37116,2693.3,2692.5,3.2078]
[1724695459327,4.27,2693.2,2692.5,3.2078]
[1724695459640,4.27,2693.2,2692.0,25.7]
[1724695459641,4.27,2692.9,2692.0,25.7]
[1724695459831,4.27,2692.9,2692.2,0.37131]
[1724695459832,1.4236,2692.8,2692.2,0.37131]
[1724695460030,0.37125,2692.7,2692.2,0.00442586]
[1724695460339,9.64375106,2692.6,2692.2,0.00442586]
[1724695460525,9.64375106,2692.6,2692.2,0.00999586]
[1724695460724,9.8507422,2692.7,2692.2,0.00999586]
[1724695460931,9.4794922,2692.7,2692.2,0.00999586]
[1724695461131,9.4794922,2692.5,2692.2,0.00999586]
[1724695461331,13.7494922,2692.6,2692.2,0.00999586]
[1724695461731,4.64126,2692.6,2692.2,0.00999586]
[1724695461928,7.4778,2692.3,2691.6,0.37139]
[1724695462130,4.27,2692.0,2691.6,0.37139]
[1724695462329,3.2078,2692.3,2691.0,3.2078]
[1724695462330,4.27,2691.8,2691.0,3.2078]
[1724695462633,4.27,2691.8,2690.7,0.6896]
[1724695462634,9.08444192,2691.7,2691.1,26.07145]
[1724695462834,9.79984192,2691.7,2691.1,25.7]
[1724695463134,9.79984192,2691.7,2691.1,26.07405752]
[1724695463525,4.64141,2691.5,2691.1,0.00816752]
[1724695463725,0.37142,2691.4,2691.1,0.00816752]
[1724695463926,4.27,2691.2,2691.1,0.00816752]
[1724695464334,17.43557282,2691.2,2691.1,0.00816752]
[1724695464532,25.64337282,2691.2,2690.2,3.2078]
[1724695464734,4.27,2690.8,2690.4,0.37155]
[1724695464932,4.27,2691.0,2690.8,0.3715]
[1724695465135,4.27,2691.0,2690.7,0.37151]
[1724695465339,9.50363851,2690.9,2690.7,0.37151]
[1724695465534,9.50681016,2690.9,2690.8,0.3715]
[1724695465738,0.00317165,2690.9,2690.8,4.0875]
[1724695467134,0.00557,2691.7,2690.9,0.92873]
[1724695467436,0.00557,2691.7,2691.0,3.2078]
[1724695467640,9.3457444,2691.6,2691.1,25.7]
[1724695467946,9.3457444,2691.6,2691.4,0.37141]
[1724695468138,9.34839757,2691.6,2691.3,0.37143]
[1724695468437,13.61839757,2691.6,2691.1,25.7]
[1724695468641,14.32849757,2691.6,2691.1,26.07146]
[1724695468835,14.32849757,2691.6,2690.7,3.2125509]
[1724695468836,14.69990757,2691.6,2690.9,0.37149]
[1724695469137,0.37141,2691.5,2690.9,0.37148]
[1724695469334,14.32849757,2691.6,2690.8,0.3715]
[1724695469335,0.37142,2691.4,2690.8,0.3715]
[1724695469533,4.27,2691.1,2690.7,0.0047509]
[1724695469733,4.27,2690.8,2690.7,0.0047509]
[1724695470140,17.24589768,2690.8,2690.7,0.0047509]
[1724695470444,9.25909768,2690.8,2690.7,0.3762709]
[1724695470830,4.27,2691.4,2690.7,8.7215509]
[1724695471040,3.21337,2691.7,2691.2,0.37144]
[1724695471041,4.27557,2691.7,2691.2,0.37144]
[1724695471231,9.49811582,2691.3,2690.9,3.2078]
[1724695471436,9.49811582,2691.3,2691.2,0.37145]
[1724695471739,4.27557,2691.7,2690.9,3.2078]
[1724695471934,9.43076006,2691.3,2691.2,0.37144]
[1724695472135,13.70076006,2691.4,2690.7,0.0047509]
[1724695472343,4.27,2691.4,2690.7,0.0047509]
[1724695472638,9.55952859,2691.3,2690.8,0.3715]
[1724695472839,4.27,2691.1,2690.7,0.3762609]
[1724695473041,4.64146,2691.1,2690.7,0.0047509]
[1724695473241,12.90408859,2691.0,2690.7,0.0047509]
[1724695473645,3.716,2690.9,2690.7,0.0047509]
[1724695473850,9.18808859,2691.0,2690.7,0.3762709]
[1724695474038,9.06858089,2690.8,2690.7,0.3762709]
[1724695474239,9.06858089,2691.0,2690.8,0.37149]
[1724695474644,0.75,2691.3,2690.7,0.0047509]
[1724695474947,9.48306279,2691.2,2690.8,0.92877]
[1724695475141,9.48306279,2691.2,2691.1,4.50792]
[1724695475352,0.00265317,2691.6,2691.5,0.37141]
[1724695475645,9.17682716,2691.6,2691.5,26.07141]
[1724695475943,0.00265317,2691.6,2691.5,35.71514]
[1724695476446,0.00265317,2691.6,2691.5,36.64367]
[1724695476946,0.37125,2692.7,2691.8,0.92841]
[1724695477147,0.7478,2692.9,2691.8,0.92841]
[1724695477448,9.44160946,2692.6,2691.8,0.92841]
[1724695477650,0.37124,2692.7,2692.2,0.3713]
[1724695477850,0.3739152,2692.7,2692.2,0.3713]
[1724695478046,0.3739152,2692.7,2691.8,0.92841]
[1724695478047,9.33906505,2692.6,2692.3,0.3713]
[1724695478257,9.33906505,2692.6,2691.6,0.92847]
[1724695478453,9.71032505,2692.6,2692.1,0.37132]
[1724695478641,0.37129,2692.4,2691.5,25.7]
[1724695478953,4.4682452,2692.7,2692.4,0.37128]
[1724695478954,0.0082452,2692.7,2692.4,0.37128]
[1724695479144,0.0082452,2692.7,2692.6,0.37126]
[1724695479341,0.0082452,2692.7,2692.6,0.37502823]
[1724695479652,9.41924337,2692.7,2692.6,0.37502823]
[1724695480750,9.41924337,2692.7,2692.6,0.00376823]
[1724695481051,13.50408337,2692.7,2692.6,0.00376823]
[1724695482050,13.13284337,2692.7,2692.6,0.00376823]
[1724695482265,13.13284337,2692.7,2692.6,0.37502823]
[1724695482461,9.41924337,2692.7,2692.6,0.37502823]
[1724695483653,5.2e-06,2692.7,2692.6,14.15272823]
[1724695484255,5.2e-06,2692.7,2692.6,38.92457823]
[1724695484649,0.00468525,2692.7,2692.6,38.92457823]
[1724695485550,0.00468525,2692.7,2692.6,32.99642823]
[1724695486456,0.00468525,2692.7,2692.6,12.29642823]
[1724695486658,0.00468525,2692.7,2692.6,13.22457823]
[1724695486870,0.00468525,2692.7,2692.6,7.29642823]
[1724695487358,0.00468525,2692.7,2692.6,8.22457823]
[1724695487758,3.9049,2693.9,2692.6,8.22457823]
[1724695487759,3.9049,2693.9,2693.0,0.92799]
[1724695487960,0.6971,2693.9,2693.6,0.37111]
[1724695488159,9.45784247,2693.7,2693.5,0.37113]
[1724695488361,9.45784247,2693.8,2693.6,0.37111]
[1724695488664,9.45784247,2693.8,2693.1,3.9708]
[1724695488665,9.3300464,2693.6,2693.4,0.37114]
[1724695488966,9.3300464,2693.7,2693.4,0.37671]
[1724695489261,9.3300464,2693.5,2693.4,0.00557]
[1724695489559,9.3300464,2693.6,2693.4,0.37671]
[1724695489953,3.7128,2693.6,2693.4,0.00557]
[1724695490153,9.3055304,2693.5,2693.4,0.00557]
[1724695490662,9.33226321,2693.6,2693.4,0.00557]
[1724695490864,9.70338321,2693.6,2693.4,0.00557]
[1724695491261,0.37112,2693.6,2693.4,0.00557]
[1724695491662,9.33226321,2693.5,2693.4,0.00557]
[1724695491865,13.04506321,2693.5,2693.4,0.00557]
[1724695493961,18.41619321,2693.5,2693.4,0.00557]
[1724695494156,22.50506321,2693.5,2692.6,0.00376823]
[1724695494358,3.2078,2693.3,2692.6,0.00376823]
[1724695494672,9.6997768,2693.2,2692.8,0.37122]
[1724695494862,9.3285968,2693.2,2692.6,0.00376823]
[1724695495358,9.3285968,2693.2,2692.6,0.00933823]
[1724695495559,9.6997768,2693.2,2692.8,0.37122]
[1724695495763,9.3285968,2693.2,2692.6,0.93746823]
[1724695496068,9.3285968,2693.2,2693.1,0.37119]
[1724695496265,13.0413968,2693.2,2693.1,0.37119]
[1724695497060,13.0413968,2693.2,2692.9,3.2078]
[1724695497260,13.8024968,2693.2,2693.0,0.3712]
[1724695497460,13.8024968,2693.2,2693.1,0.37119]
[1724695497867,10.0896968,2693.2,2693.1,0.37119]
[1724695499268,9.3285968,2693.2,2693.1,0.37119]
[1724695499781,9.47292063,2693.3,2693.2,0.37117]
[1724695499976,0.7296,2693.4,2693.2,0.37117]
[1724695500268,0.7296,2693.4,2693.0,0.37119]
[1724695500269,9.15228252,2693.3,2693.0,0.37119]
[1724695500469,9.15228252,2693.3,2693.1,0.37118]
[1724695500677,9.15228252,2693.3,2693.2,0.37117]
[1724695501267,9.15228252,2693.3,2693.1,0.37118]
[1724695501665,9.15228252,2693.3,2692.9,3.2078]
[1724695501666,9.15228252,2693.3,2693.0,0.37119]
[1724695501972,9.15228252,2693.3,2693.2,0.37117]
[1724695502159,0.00309768,2693.8,2693.7,0.3711]
[1724695502363,0.00309768,2693.8,2693.7,3.5789]
[1724695502562,0.00309768,2693.8,2693.7,7.2909]
[1724695502960,0.00309768,2693.8,2693.7,3.5789]
[1724695503469,9.44656384,2693.8,2693.7,3.5789]
[1724695503971,13.15856384,2693.8,2693.4,3.2078]
[1724695504271,9.44656384,2693.8,2693.4,3.2078]
[1724695504565,9.44656384,2693.8,2693.4,3.57894]
[1724695504971,0.3711,2693.7,2693.4,3.2078]
[1724695505159,9.44656384,2693.8,2693.4,3.2078]
[1724695505359,9.44656384,2693.8,2693.1,0.37118]
[1724695505360,9.65776186,2693.6,2693.1,0.37118]
[1724695505565,0.37112,2693.6,2693.1,0.37118]
[1724695505767,1.08024,2693.5,2693.0,0.37119]
[1724695505965,10.59285845,2693.5,2693.1,0.37118]
[1724695506162,9.18205845,2693.5,2693.3,0.37115]
[1724695506568,9.18205845,2693.6,2693.3,0.37115]
[1724695506762,9.18205845,2693.6,2692.9,3.2078]
[1724695506968,9.447756,2693.4,2692.9,3.2078]
[1724695507168,9.447756,2693.4,2693.3,0.37116]
[1724695507367,4.28,2693.7,2693.3,0.37116]
[1724695507671,9.447756,2693.4,2693.3,0.37116]
[1724695507869,9.43406659,2693.6,2693.3,0.37116]
[1724695508066,4.65111,2693.7,2693.3,0.37116]
[1724695508368,4.65111,2693.7,2692.9,3.2078]
[1724695508369,9.43406659,2693.4,2692.9,3.2078]
[1724695508572,0.37116,2693.3,2692.9,3.2078]
[1724695508772,9.38610351,2693.3,2693.1,0.37118]
[1724695508966,0.37114,2693.5,2693.0,0.37119]
[1724695509171,0.37114,2693.5,2693.1,0.37118]
[1724695509361,0.37114,2693.5,2692.9,3.2078]
[1724695509362,9.38610351,2693.4,2692.9,3.2078]
[1724695509562,9.38610351,2693.4,2693.0,0.37119]
[1724695509760,9.75725351,2693.4,2693.0,0.37119]
[1724695510075,0.37115,2693.4,2693.0,0.37119]
[1724695510266,0.37115,2693.4,2692.9,3.2078]
[1724695510267,0.37115,2693.4,2692.9,3.579]
[1724695510465,4.28,2693.1,2692.6,0.00933823]
[1724695510669,0.733,2693.0,2692.6,0.00933823]
[1724695510869,0.733,2693.0,2692.9,0.37121]
[1724695510870,9.42200534,2693.0,2692.9,0.37121]
[1724695511062,6.7897971,2693.4,2693.3,0.37116]
[1724695511367,0.00309768,2693.8,2693.2,1.4111]
[1724695511368,9.42200534,2693.5,2693.2,1.4111]
[1724695511562,9.42200534,2693.5,2692.9,3.2078]
[1724695511563,6.785667,2693.4,2692.9,3.2078]
[1724695511766,6.785667,2693.4,2692.6,0.00933823]
[1724695511767,5.34377,2693.3,2692.8,0.37122]
[1724695511967,5.34377,2693.3,2692.6,0.00933823]
[1724695512172,9.27424154,2693.2,2692.8,0.37122]
[1724695512375,0.37119,2693.1,2692.7,0.37123]
[1724695512570,4.28,2693.1,2692.6,0.00933823]
[1724695512766,0.37122,2692.9,2692.6,0.00933823]
[1724695512971,3.7136,2692.9,2692.6,0.00933823]
[1724695513174,3.7136,2692.9,2692.7,0.37124]
[1724695513175,9.17254301,2692.8,2692.7,0.37124]
[1724695513677,12.88614301,2692.8,2692.6,0.38058823]
[1724695513866,3.7136,2692.8,2692.6,0.00933823]
[1724695514075,9.7056377,2692.7,2692.6,0.00933823]
[1724695514472,13.4192377,2692.7,2692.6,0.00933823]
[1724695515075,19.3473477,2692.7,2692.6,0.00557]
[1724695515382,0.37131,2692.3,2691.9,1.11475]
[1724695515777,9.454067,2692.2,2691.9,0.37135]
[1724695516072,9.454067,2692.2,2691.5,4.13632]
[1724695516073,9.454067,2692.2,2692.1,0.37132]
[1724695516481,9.454067,2692.3,2692.2,0.37131]
[1724695516786,9.24022413,2692.2,2692.1,0.37132]
[1724695517079,9.24022413,2692.3,2692.2,0.37131]
[1724695517384,0.00557,2692.4,2692.3,0.3713]
[1724695517772,9.13975988,2692.4,2692.3,0.3713]
[1724695518377,9.13975988,2692.4,2692.0,0.6925]
[1724695518579,9.51104988,2692.4,2692.1,0.37132]
[1724695518783,0.3713,2692.3,2692.1,0.37132]
[1724695518986,9.13975988,2692.4,2692.1,0.37132]
[1724695519282,9.50961572,2692.2,2692.1,0.37132]
[1724695519481,0.37686,2692.4,2692.1,0.37132]
[1724695519482,9.88091572,2692.3,2692.1,0.37132]
[1724695519688,0.3713,2692.3,2692.1,0.37132]
[1724695519877,0.3713,2692.3,2692.0,1.06383]
[1724695520182,9.21074185,2692.2,2692.1,0.37132]
[1724695520583,9.21074185,2692.2,2692.1,5.01404]
[1724695520785,0.00557,2692.4,2692.3,1.29955]
[1724695520985,0.00557,2692.4,2692.3,4.0857]
[1724695521182,9.0790074,2692.4,2692.3,4.0857]
[1724695521786,9.0790074,2692.4,2692.2,1.08241]
[1724695521982,9.0790074,2692.4,2692.3,0.3713]
[1724695522294,9.0790074,2692.4,2692.1,0.37132]
[1724695522690,9.0790074,2692.4,2692.3,0.3713]
[1724695523294,9.0790074,2692.4,2692.2,0.3713]
[1724695523596,9.0790074,2692.4,2692.3,0.3713]
[1724695525896,0.00557,2692.4,2692.3,10.01395]
[1724695526094,0.37116,2693.3,2693.0,0.37119]
[1724695526495,9.16326621,2693.1,2693.0,0.37119]
[1724695526802,0.7116,2693.5,2692.4,1.4797]
[1724695527099,9.29092984,2693.4,2693.3,0.37115]
[1724695527800,9.29092984,2693.4,2693.3,4.08395]
[1724695528001,9.14255591,2693.6,2693.4,0.37113]
[1724695528204,9.13698591,2693.5,2693.4,0.37113]
[1724695528407,0.00557,2693.6,2693.5,0.37113]
[1724695528801,0.00557,2693.6,2693.5,4.08393]
[1724695529104,0.00180177,2693.6,2693.5,10.01177]
[1724695529296,0.00180177,2693.6,2693.5,9.08393]
[1724695529605,0.00180177,2693.6,2693.5,4.08393]
[1724695530798,0.00180177,2693.6,2693.5,10.01177]
[1724695531199,0.00180177,2693.6,2693.5,9.08393]
[1724695532098,0.00180177,2693.6,2693.5,10.01177]
[1724695532300,0.00180177,2693.6,2693.5,9.08393]
[1724695532494,0.00180177,2693.6,2693.5,10.01177]
[1724695532700,0.00180177,2693.6,2693.5,10.93961]
[1724695534005,1.77e-06,2693.6,2693.5,10.93961]
[1724695534904,1.77e-06,2693.6,2693.5,11.69271]
[1724695535999,3.2078,2695.2,2693.7,0.92775]
[1724695536196,0.7093,2695.1,2694.5,3.57878]
[1724695536396,9.12398283,2694.7,2694.5,0.37098]
[1724695536593,0.37094,2694.9,2694.5,0.37099]
[1724695536801,1.12304,2694.9,2694.5,0.37099]
[1724695536997,9.18999934,2694.6,2694.5,0.37522651]
[1724695537200,9.56095934,2694.8,2694.5,0.00423651]
[1724695537405,0.37096,2694.8,2694.5,0.00423651]
[1724695537710,9.18999934,2694.6,2694.5,0.37522651]
[1724695537900,9.18999934,2694.7,2694.5,0.37522651]
[1724695538093,9.11692365,2694.8,2694.6,0.37098]
[1724695538295,9.11692365,2694.6,2694.5,0.37522651]
[1724695538701,9.11692365,2694.8,2694.5,0.37522651]
[1724695538904,9.19790479,2694.6,2694.5,0.37522651]
[1724695539102,9.19790479,2694.6,2694.5,1.59752651]
[1724695539303,9.19790479,2694.8,2694.6,0.37098]
[1724695539509,0.75474265,2694.9,2694.5,1.40743651]
[1724695539704,0.75474265,2694.9,2694.7,0.37096]
[1724695539907,9.18639114,2694.8,2694.7,0.37096]
[1724695540115,0.00264265,2694.9,2694.8,0.37095]
[1724695540406,0.00264265,2694.9,2694.7,0.37096]
[1724695540612,9.18903379,2694.9,2694.5,1.40743651]
[1724695540803,9.18903379,2694.9,2694.7,0.37096]
[1724695541416,9.18903379,2694.9,2694.6,0.37097]
[1724695541606,9.18903379,2694.9,2694.5,1.40743651]
[1724695541906,9.18903379,2694.9,2694.8,0.37095]
[1724695542220,0.00264265,2694.9,2694.8,1.29834]
[1724695542403,0.00264265,2694.9,2694.8,5.00874]
[1724695542711,0.00557,2695.0,2694.9,1.29829]
[1724695542901,0.00557,2695.0,2694.9,6.63874]
[1724695543102,0.00557,2695.0,2694.9,11.63874]
[1724695543310,0.00557,2695.0,2694.9,10.71139]
[1724695543519,0.00557,2695.0,2694.9,11.63874]
[1724695543708,0.00962511,2695.0,2694.9,11.63874]
[1724695545107,0.00962511,2695.0,2694.9,10.71139]
[1724695545314,0.00962511,2695.0,2694.9,4.78404]
[1724695545507,0.00962511,2695.0,2694.9,4.08134]
[1724695545710,0.00962511,2695.0,2694.8,3.2078]
[1724695545711,13.08314903,2695.0,2694.8,3.2078]